[Event "Wuerttemberg Rapid Teams 2024"]
[Site "B?blingen, Germany"]
[Date "2024.04.13"]
[Round "9.9"]
[White "Kabisch, Thilo"]
[Black "Kuklin, Valentin"]
[Result "0-1"]
[ECO "B40"]
[WhiteElo "2228"]
[BlackElo "2367"]
[Annotator "RC"]
[PlyCount "116"]
[EventDate "2024.04.13"]
[EventType "team-tourn"]
[SourceTitle "playchess.com"]
[Source "ChessBase"]
[SourceQuality "1"]
[TimeControl "900+5"]

1. e4 {[%emt 0:00:04]} e6 {[%emt 0:00:06]} 2. Nf3 {[%emt 0:00:03]} d5 {[%emt 0:00:04]} 3. e5 {[%emt 0:00:02]} c5 {[%emt 0:00:04]} 4. c3 {[%emt 0:00:02]} Nc6 {[%emt 0:00:09]} 5. Na3 {[%emt 0:00:02]} Nge7 {[%emt 0:00:42]} 6. Nc2 {[%emt 0:00:04]} d4 {[%emt 0:00:25]} 7. Bd3 {[%emt 0:00:14]} Ng6 {[%emt 0:00:36]} 8. Bxg6 {[%emt 0:00:57]} hxg6 {[%emt 0:00:02]} 9. d3 {[%emt 0:00:09]} Be7 {[%emt 0:00:52]} 10. Qe2 {[%emt 0:00:35]} b6 {[%emt 0:01:39]} 11. cxd4 {[%emt 0:00:18]} cxd4 {[%emt 0:00:14]} 12. Bd2 {[%emt 0:00:53]} Bb7 {[%emt 0:00:22]} 13. Rc1 {[%emt 0:00:03]} Qd5 {[%emt 0:00:29]} 14. O-O {[%emt 0:01:09]} Qxa2 {[%emt 0:01:32]} 15. Ncxd4 {[%emt 0:00:21]} Nxd4 {[%emt 0:00:40]} 16. Nxd4 {[%emt 0:00:04]} Qd5 {[%emt 0:00:03]} 17. Nf3 {[%emt 0:00:17]} Ba6 {[%emt 0:00:39]} 18. Rfd1 {[%emt 0:01:14]} O-O {[%emt 0:00:37]} 19. Bg5 {[%emt 0:01:06]} Bxg5 {[%emt 0:00:58]} 20. Nxg5 {[%emt 0:00:03]} Rfc8 {[%emt 0:00:40]} 21. Rc3 {[%emt 0:01:19]} Rxc3 {[%emt 0:01:25]} 22. bxc3 {[%emt 0:00:02]} Rd8 {[%emt 0:00:02]} 23. Qe3 {[%emt 0:00:05]} Qb3 {[%emt 0:00:42]} 24. Qf3 {[%emt 0:00:21]} Rf8 {[%emt 0:01:07]} 25. c4 {[%emt 0:01:00]} Bb7 {[%emt 0:00:08]} 26. Qe2 {[%emt 0:00:01]} a5 {[%emt 0:00:17]} 27. Re1 {[%emt 0:00:16]} Qc3 {[%emt 0:00:16]} 28. Qe3 {[%emt 0:00:30]} Rd8 {[%emt 0:00:26]} 29. Rf1 {[%emt 0:01:25]} Qxd3 {[%emt 0:00:26]} 30. Qxb6 {[%emt 0:00:22]} Qd7 {[%emt 0:00:30]} 31. Qxa5 {[%emt 0:00:21]} Rc8 {[%emt 0:00:07]} 32. Qc3 {[%emt 0:00:25]} Qc7 {[%emt 0:00:52]} 33. Rc1 {[%emt 0:00:22]} Ra8 {[%emt 0:00:06]} 34. c5 {[%emt 0:00:57]} Bc6 {[%emt 0:00:01]} 35. Re1 {[%emt 0:00:08]} Ra4 {[%emt 0:00:11]} 36. Rd1 {[%emt 0:00:40]} Rg4 {[%emt 0:00:04]} 37. Nf3 {[%emt 0:00:09]} Bd5 {[%emt 0:00:04]} 38. Rd4 {[%emt 0:00:10]} Bxf3 {[%emt 0:00:02]} 39. Rxg4 {[%emt 0:00:19]} Bxg4 {[%emt 0:00:01]} 40. f3 {[%emt 0:00:04]} Bf5 {[%emt 0:00:02]} 41. g4 {[%emt 0:00:01]} Bb1 {[%emt 0:00:02]} 42. Kf2 {[%emt 0:00:02]} Ba2 {[%emt 0:00:01]} 43. h4 {[%emt 0:00:01]} Bd5 {[%emt 0:00:01]} 44. Ke3 {[%emt 0:00:01]} Qb7 {[%emt 0:00:01]} 45. f4 {[%emt 0:00:02]} Bg2 {[%emt 0:00:01]} 46. Kf2 {[%emt 0:00:02]} Bh1 {[%emt 0:00:01]} 47. h5 {[%emt 0:00:01]} Qg2+ {[%emt 0:00:01]} 48. Ke3 {[%emt 0:00:03]} Qg3+ {[%emt 0:00:02]} 49. Kd4 {[%emt 0:00:01]} Qxf4+ {[%emt 0:00:01]} 50. Kd3 {[%emt 0:00:05]} Qf3+ {[%emt 0:00:01]} 51. Kc4 {[%emt 0:00:01]} Qxc3+ {[%emt 0:00:03]} 52. Kxc3 {[%emt 0:00:01]} gxh5 {[%emt 0:00:01]} 53. gxh5 {[%emt 0:00:01]} Kh7 {[%emt 0:00:01]} 54. Kb4 {[%emt 0:00:02]} Kh6 {[%emt 0:00:01]} 55. Kb5 {[%emt 0:00:01]} Kxh5 {[%emt 0:00:01]} 56. c6 {[%emt 0:00:01]} Bxc6+ {[%emt 0:00:01]} 57. Kxc6 {[%emt 0:00:00]} g5 {[%emt 0:00:00]} 58. Kd6 {[%emt 0:00:02]} Kg6 {[%emt 0:00:01]} 0-1

[Event "Wuerttemberg Rapid Teams 2024"]
[Site "B?blingen, Germany"]
[Date "2024.04.13"]
[Round "9.10"]
[White "Vujic, Branimir"]
[Black "Trachtmann, Mark"]
[Result "1-0"]
[ECO "A45"]
[WhiteElo "2218"]
[BlackElo "2203"]
[Annotator "RC"]
[PlyCount "66"]
[EventDate "2024.04.13"]
[EventType "team-tourn"]
[SourceTitle "playchess.com"]
[Source "ChessBase"]
[SourceQuality "1"]
[TimeControl "900+5"]

1. d4 {[%emt 0:00:03]} Nf6 {[%emt 0:00:01]} 2. Bf4 {[%emt 0:00:01]} g6 {[%emt 0:00:06]} 3. Nc3 {[%emt 0:00:02]} d5 {[%emt 0:00:04]} 4. Qd2 {[%emt 0:00:08]} Bg7 {[%emt 0:01:16]} 5. O-O-O {[%emt 0:00:04]} O-O {[%emt 0:00:32]} 6. Kb1 {[%emt 0:00:09]} c6 {[%emt 0:01:19]} 7. Bh6 {[%emt 0:02:15]} b5 {[%emt 0:00:23]} 8. f3 {[%emt 0:00:46]} b4 {[%emt 0:00:43]} 9. Na4 {[%emt 0:00:16]} a5 {[%emt 0:00:06]} 10. h4 {[%emt 0:00:19]} Qd6 {[%emt 0:02:31]} 11. Bf4 {[%emt 0:00:31]} Qd8 {[%emt 0:00:11]} 12. g4 {[%emt 0:00:12]} h5 {[%emt 0:00:32]} 13. Bh6 {[%emt 0:00:20]} Nbd7 {[%emt 0:00:38]} 14. Bh3 {[%emt 0:00:23]} e5 {[%emt 0:01:20]} 15. gxh5 {[%emt 0:00:09]} Nxh5 {[%emt 0:00:05]} 16. Bxd7 {[%emt 0:02:27]} Bxd7 {[%emt 0:00:06]} 17. Bxg7 {[%emt 0:00:04]} Kxg7 {[%emt 0:00:03]} 18. dxe5 {[%emt 0:00:02]} Qe7 {[%emt 0:00:19]} 19. Qd4 {[%emt 0:00:11]} Bf5 {[%emt 0:00:58]} 20. e3 {[%emt 0:01:52]} Rfe8 {[%emt 0:00:07]} 21. f4 {[%emt 0:00:08]} f6 {[%emt 0:00:46]} 22. exf6+ {[%emt 0:00:55]} Qxf6 {[%emt 0:00:02]} 23. Qc5 {[%emt 0:02:00]} Re4 {[%emt 0:00:23]} 24. Nb6 {[%emt 0:00:59]} Rae8 {[%emt 0:00:17]} 25. Ne2 {[%emt 0:00:24]} Bg4 {[%emt 0:01:17]} 26. Rd2 {[%emt 0:00:43]} Rxe3 {[%emt 0:00:09]} 27. Nc1 {[%emt 0:00:05]} Re1 {[%emt 0:00:28]} 28. Rxe1 {[%emt 0:00:15]} Rxe1 {[%emt 0:00:02]} 29. Rf2 {[%emt 0:01:01]} Ng3 {[%emt 0:00:42]} 30. Qxa5 {[%emt 0:00:03]} Ne4 {[%emt 0:00:08]} 31. Qxb4 {[%emt 0:00:38]} Rxc1+ {[%emt 0:00:04]} 32. Kxc1 {[%emt 0:00:05]} Nxf2 {[%emt 0:00:01]} 33. a4 {[%emt 0:00:11]} Ne4 {[%emt 0:00:04]} 1-0

[Event "Wuerttemberg Rapid Teams 2024"]
[Site "B?blingen, Germany"]
[Date "2024.04.13"]
[Round "9.11"]
[White "Krockenberger, Martin"]
[Black "Schuh, Karsten"]
[Result "1-0"]
[ECO "A80"]
[WhiteElo "2125"]
[BlackElo "2133"]
[Annotator "RC"]
[PlyCount "75"]
[EventDate "2024.04.13"]
[EventType "team-tourn"]
[SourceTitle "playchess.com"]
[Source "ChessBase"]
[SourceQuality "1"]
[TimeControl "900+5"]

1. d4 {[%emt 0:00:05]} f5 {[%emt 0:00:02]} 2. Nc3 {[%emt 0:00:08]} d5 {[%emt 0:00:10]} 3. Nf3 {[%emt 0:00:38]} Nf6 {[%emt 0:00:06]} 4. Bg5 {[%emt 0:00:14]} e6 {[%emt 0:00:05]} 5. e3 {[%emt 0:00:25]} Be7 {[%emt 0:00:05]} 6. Bd3 {[%emt 0:00:11]} b6 {[%emt 0:00:48]} 7. O-O {[%emt 0:01:11]} O-O {[%emt 0:00:05]} 8. Ne2 {[%emt 0:00:40]} Ne4 {[%emt 0:05:29]} 9. Bxe7 {[%emt 0:00:10]} Qxe7 {[%emt 0:00:00]} 10. c4 {[%emt 0:00:16]} c6 {[%emt 0:00:51]} 11. Ne5 {[%emt 0:00:29]} Bb7 {[%emt 0:00:28]} 12. cxd5 {[%emt 0:01:00]} exd5 {[%emt 0:00:39]} 13. Rc1 {[%emt 0:00:54]} Rf6 {[%emt 0:00:03]} 14. f3 {[%emt 0:01:24]} Nd6 {[%emt 0:00:05]} 15. Qb3 {[%emt 0:00:40]} Nf7 {[%emt 0:02:14]} 16. f4 {[%emt 0:00:13]} Nd7 {[%emt 0:00:09]} 17. Rc3 {[%emt 0:00:32]} Rc8 {[%emt 0:01:21]} 18. Rfc1 {[%emt 0:00:04]} Nb8 {[%emt 0:00:47]} 19. a4 {[%emt 0:00:45]} Nd8 {[%emt 0:00:23]} 20. a5 {[%emt 0:00:19]} c5 {[%emt 0:00:50]} 21. Qc2 {[%emt 0:02:36]} g6 {[%emt 0:00:39]} 22. dxc5 {[%emt 0:00:04]} bxa5 {[%emt 0:00:09]} 23. Nd4 {[%emt 0:00:14]} Nbc6 {[%emt 0:00:10]} 24. Ndf3 {[%emt 0:00:58]} Nb4 {[%emt 0:00:06]} 25. Qb1 {[%emt 0:00:40]} Ndc6 {[%emt 0:00:05]} 26. Bb5 {[%emt 0:00:11]} a6 {[%emt 0:00:34]} 27. Bxc6 {[%emt 0:00:10]} Bxc6 {[%emt 0:00:01]} 28. Qa1 {[%emt 0:00:38]} Qc7 {[%emt 0:00:16]} 29. Nd4 {[%emt 0:00:14]} Bb5 {[%emt 0:00:17]} 30. h3 {[%emt 0:00:11]} Kg7 {[%emt 0:00:01]} 31. Kh2 {[%emt 0:00:25]} Nc6 {[%emt 0:00:02]} 32. Ndxc6 {[%emt 0:00:13]} Bxc6 {[%emt 0:00:01]} 33. b3 {[%emt 0:00:18]} Rb8 {[%emt 0:00:20]} 34. R1c2 {[%emt 0:00:04]} Rb4 {[%emt 0:00:03]} 35. Ra2 {[%emt 0:00:07]} a4 {[%emt 0:00:06]} 36. bxa4 {[%emt 0:00:13]} Qb7 {[%emt 0:00:20]} 37. Rcc2 {[%emt 0:00:04]} Kg8 {[%emt 0:00:11]} 38. Nd3 {[%emt 0:00:11]} 1-0

[Event "Wuerttemberg Rapid Teams 2024"]
[Site "B?blingen, Germany"]
[Date "2024.04.13"]
[Round "9.12"]
[White "Schuh, Bernd-Martin"]
[Black "Eisele, Steffen"]
[Result "1/2-1/2"]
[ECO "A12"]
[WhiteElo "1976"]
[BlackElo "2230"]
[Annotator "RC"]
[PlyCount "90"]
[EventDate "2024.04.13"]
[EventType "team-tourn"]
[SourceTitle "playchess.com"]
[Source "ChessBase"]
[SourceQuality "1"]
[TimeControl "900+5"]

1. Nf3 {[%emt 0:00:01]} d5 {[%emt 0:00:02]} 2. g3 {[%emt 0:00:01]} Bg4 {[%emt 0:00:12]} 3. Bg2 {[%emt 0:00:01]} Nd7 {[%emt 0:00:02]} 4. c4 {[%emt 0:00:02]} e6 {[%emt 0:01:59]} 5. b3 {[%emt 0:00:14]} Ngf6 {[%emt 0:00:10]} 6. Bb2 {[%emt 0:00:02]} Be7 {[%emt 0:00:19]} 7. d3 {[%emt 0:00:02]} O-O {[%emt 0:00:09]} 8. O-O {[%emt 0:00:02]} a5 {[%emt 0:00:16]} 9. a3 {[%emt 0:00:02]} c6 {[%emt 0:00:23]} 10. Nbd2 {[%emt 0:00:13]} h6 {[%emt 0:00:45]} 11. Qc2 {[%emt 0:00:15]} Ne8 {[%emt 0:00:59]} 12. e4 {[%emt 0:00:11]} Bf6 {[%emt 0:00:57]} 13. e5 {[%emt 0:00:16]} Be7 {[%emt 0:00:05]} 14. cxd5 {[%emt 0:00:13]} exd5 {[%emt 0:00:44]} 15. d4 {[%emt 0:01:23]} f6 {[%emt 0:01:18]} 16. Qg6 {[%emt 0:00:34]} Be6 {[%emt 0:00:12]} 17. Rae1 {[%emt 0:00:24]} Bf7 {[%emt 0:00:05]} 18. Qg4 {[%emt 0:00:39]} h5 {[%emt 0:01:54]} 19. Qh3 {[%emt 0:00:07]} Bg6 {[%emt 0:00:25]} 20. Re3 {[%emt 0:00:30]} Nc7 {[%emt 0:00:30]} 21. Nh4 {[%emt 0:00:58]} Bh7 {[%emt 0:01:25]} 22. Bf3 {[%emt 0:00:11]} fxe5 {[%emt 0:00:45]} 23. Bxh5 {[%emt 0:00:48]} Bxh4 {[%emt 0:00:13]} 24. gxh4 {[%emt 0:00:03]} Nf6 {[%emt 0:00:15]} 25. Rxe5 {[%emt 0:00:33]} Nxh5 {[%emt 0:00:19]} 26. Rxh5 {[%emt 0:00:02]} Qf6 {[%emt 0:00:12]} 27. Qg3 {[%emt 0:00:54]} Ne6 {[%emt 0:00:35]} 28. Re5 {[%emt 0:00:31]} Nf4 {[%emt 0:00:19]} 29. Re3 {[%emt 0:00:47]} Rae8 {[%emt 0:01:04]} 30. Kh1 {[%emt 0:00:03]} Qf5 {[%emt 0:00:28]} 31. Rg1 {[%emt 0:00:06]} Qf7 {[%emt 0:00:06]} 32. Rf3 {[%emt 0:00:23]} Be4 {[%emt 0:00:14]} 33. Nxe4 {[%emt 0:00:03]} Rxe4 {[%emt 0:00:02]} 34. Qg5 {[%emt 0:01:04]} Qe7 {[%emt 0:00:22]} 35. Qxe7 {[%emt 0:00:02]} Rxe7 {[%emt 0:00:02]} 36. Bc1 {[%emt 0:00:06]} Ne2 {[%emt 0:00:03]} 37. Rxf8+ {[%emt 0:00:05]} Kxf8 {[%emt 0:00:01]} 38. Rd1 {[%emt 0:00:08]} Re4 {[%emt 0:00:04]} 39. Be3 {[%emt 0:00:05]} Rxh4 {[%emt 0:00:03]} 40. Kg2 {[%emt 0:00:02]} Nf4+ {[%emt 0:00:04]} 41. Kg3 {[%emt 0:00:04]} g5 {[%emt 0:00:05]} 42. Bxf4 {[%emt 0:00:07]} Rxf4 {[%emt 0:00:01]} 43. f3 {[%emt 0:00:04]} Kf7 {[%emt 0:00:01]} 44. Rd3 {[%emt 0:00:01]} Kf6 {[%emt 0:00:01]} 45. h3 {[%emt 0:00:09]} Kf5 {[%emt 0:00:01]} 1/2-1/2

[Event "Wuerttemberg Rapid Teams 2024"]
[Site "B?blingen, Germany"]
[Date "2024.04.13"]
[Round "9.13"]
[White "Kerpe, Andreas"]
[Black "Braeuning, Rudolf Wilhelm"]
[Result "1/2-1/2"]
[ECO "B26"]
[WhiteElo "2146"]
[BlackElo "2194"]
[Annotator "RC"]
[PlyCount "76"]
[EventDate "2024.04.13"]
[EventType "team-tourn"]
[SourceTitle "playchess.com"]
[Source "ChessBase"]
[SourceQuality "1"]
[TimeControl "900+5"]

1. e4 {[%emt 0:00:05]} c5 {[%emt 0:00:01]} 2. Nc3 {[%emt 0:00:10]} Nc6 {[%emt 0:00:01]} 3. g3 {[%emt 0:00:05]} g6 {[%emt 0:00:01]} 4. Bg2 {[%emt 0:00:01]} Bg7 {[%emt 0:00:01]} 5. d3 {[%emt 0:00:03]} Rb8 {[%emt 0:00:02]} 6. Be3 {[%emt 0:00:27]} d6 {[%emt 0:00:14]} 7. Qd2 {[%emt 0:00:11]} b5 {[%emt 0:00:03]} 8. f4 {[%emt 0:01:13]} b4 {[%emt 0:00:06]} 9. Nd1 {[%emt 0:00:02]} e5 {[%emt 0:01:14]} 10. Nf3 {[%emt 0:00:30]} Nge7 {[%emt 0:01:21]} 11. O-O {[%emt 0:00:14]} O-O {[%emt 0:00:20]} 12. fxe5 {[%emt 0:02:42]} Nxe5 {[%emt 0:00:10]} 13. Nxe5 {[%emt 0:00:07]} Bxe5 {[%emt 0:00:05]} 14. Bh6 {[%emt 0:00:06]} Bg7 {[%emt 0:00:15]} 15. Bxg7 {[%emt 0:00:03]} Kxg7 {[%emt 0:00:01]} 16. Ne3 {[%emt 0:00:10]} Nc6 {[%emt 0:00:48]} 17. Nd5 {[%emt 0:00:29]} Be6 {[%emt 0:00:15]} 18. Nf6 {[%emt 0:00:55]} Ne5 {[%emt 0:01:28]} 19. a3 {[%emt 0:02:42]} b3 {[%emt 0:00:45]} 20. c3 {[%emt 0:00:25]} Nd7 {[%emt 0:00:44]} 21. Nxd7 {[%emt 0:00:20]} Qxd7 {[%emt 0:00:23]} 22. c4 {[%emt 0:00:02]} f6 {[%emt 0:01:03]} 23. Qc3 {[%emt 0:00:12]} Bg8 {[%emt 0:00:27]} 24. Rac1 {[%emt 0:00:56]} Qe7 {[%emt 0:00:29]} 25. Bh3 {[%emt 0:01:01]} Qe5 {[%emt 0:00:17]} 26. Rf2 {[%emt 0:00:27]} Qxc3 {[%emt 0:01:39]} 27. Rxc3 {[%emt 0:00:01]} Rf7 {[%emt 0:00:34]} 28. Be6 {[%emt 0:00:32]} Rfb7 {[%emt 0:00:05]} 29. Bxg8 {[%emt 0:00:03]} Rxg8 {[%emt 0:00:03]} 30. Rc1 {[%emt 0:00:00]} a5 {[%emt 0:00:20]} 31. Rcf1 {[%emt 0:00:01]} Rf8 {[%emt 0:00:07]} 32. Kg2 {[%emt 0:00:06]} a4 {[%emt 0:00:02]} 33. Kh3 {[%emt 0:00:07]} Re7 {[%emt 0:00:06]} 34. Kg2 {[%emt 0:00:03]} Re6 {[%emt 0:00:59]} 35. g4 {[%emt 0:00:26]} g5 {[%emt 0:00:14]} 36. Kg3 {[%emt 0:00:12]} h6 {[%emt 0:00:39]} 37. h4 {[%emt 0:00:21]} Ree8 {[%emt 0:00:14]} 38. h5 {[%emt 0:00:14]} Re6 {[%emt 0:00:19]} 1/2-1/2

[Event "Wuerttemberg Rapid Teams 2024"]
[Site "B?blingen, Germany"]
[Date "2024.04.13"]
[Round "9.14"]
[White "Hartmann, Martin"]
[Black "Vaysberg, Alexander"]
[Result "1/2-1/2"]
[ECO "B20"]
[WhiteElo "2158"]
[BlackElo "2152"]
[Annotator "RC"]
[PlyCount "140"]
[EventDate "2024.04.13"]
[EventType "team-tourn"]
[SourceTitle "playchess.com"]
[Source "ChessBase"]
[SourceQuality "1"]
[TimeControl "900+5"]

1. e4 {[%emt 0:00:03]} c5 {[%emt 0:00:04]} 2. a3 {[%emt 0:00:01]} g6 {[%emt 0:00:08]} 3. Nc3 {[%emt 0:00:02]} Bg7 {[%emt 0:00:02]} 4. Nf3 {[%emt 0:00:01]} Nc6 {[%emt 0:00:02]} 5. Bc4 {[%emt 0:00:02]} e6 {[%emt 0:00:07]} 6. d4 {[%emt 0:00:02]} Nxd4 {[%emt 0:01:44]} 7. Nxd4 {[%emt 0:00:06]} cxd4 {[%emt 0:00:08]} 8. Nb5 {[%emt 0:00:02]} Qb6 {[%emt 0:00:08]} 9. c3 {[%emt 0:01:59]} a6 {[%emt 0:03:35]} 10. Nxd4 {[%emt 0:00:08]} Ne7 {[%emt 0:00:04]} 11. O-O {[%emt 0:00:05]} O-O {[%emt 0:00:08]} 12. b4 {[%emt 0:00:43]} Qc7 {[%emt 0:00:09]} 13. Qd3 {[%emt 0:00:10]} b5 {[%emt 0:00:15]} 14. Bb3 {[%emt 0:00:04]} Bb7 {[%emt 0:00:05]} 15. Be3 {[%emt 0:00:03]} d5 {[%emt 0:00:06]} 16. exd5 {[%emt 0:01:30]} Nxd5 {[%emt 0:00:10]} 17. Rac1 {[%emt 0:00:01]} Nxe3 {[%emt 0:00:09]} 18. Qxe3 {[%emt 0:00:01]} Rfd8 {[%emt 0:00:46]} 19. Rfd1 {[%emt 0:00:39]} Bd5 {[%emt 0:00:20]} 20. Bxd5 {[%emt 0:01:37]} Rxd5 {[%emt 0:00:04]} 21. Rd2 {[%emt 0:00:11]} Rad8 {[%emt 0:00:15]} 22. Rcd1 {[%emt 0:01:40]} Qc4 {[%emt 0:01:34]} 23. h3 {[%emt 0:00:35]} Bf6 {[%emt 0:01:04]} 24. f4 {[%emt 0:00:55]} Kg7 {[%emt 0:00:06]} 25. Qd3 {[%emt 0:01:14]} Qxd3 {[%emt 0:00:21]} 26. Rxd3 {[%emt 0:00:01]} Bxd4+ {[%emt 0:02:30]} 27. Rxd4 {[%emt 0:00:01]} Rxd4 {[%emt 0:00:08]} 28. cxd4 {[%emt 0:00:02]} Rc8 {[%emt 0:00:08]} 29. Rd3 {[%emt 0:00:02]} Rc2 {[%emt 0:00:21]} 30. Kh2 {[%emt 0:00:01]} Kf6 {[%emt 0:00:17]} 31. Kg3 {[%emt 0:00:02]} Ke7 {[%emt 0:00:11]} 32. d5 {[%emt 0:01:06]} exd5 {[%emt 0:00:14]} 33. Rxd5 {[%emt 0:00:01]} Rc3+ {[%emt 0:00:01]} 34. Kh4 {[%emt 0:00:07]} Rxa3 {[%emt 0:00:18]} 35. Rc5 {[%emt 0:00:17]} h6 {[%emt 0:00:22]} 36. g4 {[%emt 0:00:26]} Ra4 {[%emt 0:00:40]} 37. Rc7+ {[%emt 0:00:02]} Kf6 {[%emt 0:00:12]} 38. Kg3 {[%emt 0:00:06]} Rxb4 {[%emt 0:00:09]} 39. Rc6+ {[%emt 0:00:01]} Kg7 {[%emt 0:00:07]} 40. Rxa6 {[%emt 0:00:02]} Rb1 {[%emt 0:00:29]} 41. Rb6 {[%emt 0:00:04]} b4 {[%emt 0:00:04]} 42. Kh4 {[%emt 0:00:10]} Rb3 {[%emt 0:00:15]} 43. Rb7 {[%emt 0:00:23]} Kf8 {[%emt 0:00:03]} 44. Rb8+ {[%emt 0:00:02]} Ke7 {[%emt 0:00:01]} 45. Rb7+ {[%emt 0:00:21]} Ke6 {[%emt 0:00:05]} 46. Rb6+ {[%emt 0:00:02]} Ke7 {[%emt 0:00:05]} 47. Rb7+ {[%emt 0:00:01]} Kf6 {[%emt 0:00:02]} 48. Rb6+ {[%emt 0:00:02]} Kg7 {[%emt 0:00:00]} 49. Rb7 {[%emt 0:00:01]} Rb1 {[%emt 0:00:03]} 50. Rb8 {[%emt 0:00:25]} b3 {[%emt 0:00:02]} 51. Rb6 {[%emt 0:00:02]} b2 {[%emt 0:00:02]} 52. Rb7 {[%emt 0:00:02]} Kf8 {[%emt 0:00:01]} 53. f5 {[%emt 0:00:14]} Ke8 {[%emt 0:00:11]} 54. Rb3 {[%emt 0:00:33]} gxf5 {[%emt 0:00:10]} 55. gxf5 {[%emt 0:00:02]} Ke7 {[%emt 0:00:01]} 56. Rb6 {[%emt 0:00:04]} Kd7 {[%emt 0:00:06]} 57. Kh5 {[%emt 0:00:03]} Rh1 {[%emt 0:00:41]} 58. Rxb2 {[%emt 0:00:02]} Rxh3+ {[%emt 0:00:02]} 59. Kg4 {[%emt 0:00:01]} Rh1 {[%emt 0:00:02]} 60. Re2 {[%emt 0:00:11]} Kd6 {[%emt 0:00:04]} 61. Kg3 {[%emt 0:00:06]} Rh5 {[%emt 0:00:23]} 62. Kg4 {[%emt 0:00:04]} Rh1 {[%emt 0:00:00]} 63. Re8 {[%emt 0:00:18]} h5+ {[%emt 0:00:04]} 64. Kg5 {[%emt 0:00:06]} Kd7 {[%emt 0:00:05]} 65. Re2 {[%emt 0:00:16]} h4 {[%emt 0:00:06]} 66. Kf6 {[%emt 0:00:02]} Rf1 {[%emt 0:00:04]} 67. Re7+ {[%emt 0:00:21]} Kd6 {[%emt 0:00:02]} 68. Rxf7 {[%emt 0:00:02]} h3 {[%emt 0:00:04]} 69. Rh7 {[%emt 0:00:01]} Rf3 {[%emt 0:00:03]} 70. Rh4 {[%emt 0:00:02]} Kd5 {[%emt 0:00:02]} 1/2-1/2

[Event "Wuerttemberg Rapid Teams 2024"]
[Site "B?blingen, Germany"]
[Date "2024.04.13"]
[Round "9.15"]
[White "Jerie, Sven"]
[Black "Freiherr von Hauff, Christopher"]
[Result "0-1"]
[ECO "B31"]
[WhiteElo "2018"]
[BlackElo "1960"]
[Annotator "RC"]
[PlyCount "96"]
[EventDate "2024.04.13"]
[EventType "team-tourn"]
[SourceTitle "playchess.com"]
[Source "ChessBase"]
[SourceQuality "1"]
[TimeControl "900+5"]

1. e4 {[%emt 0:00:01]} c5 {[%emt 0:00:25]} 2. Be2 {[%emt 0:00:01]} Nf6 {[%emt 0:00:12]} 3. d3 {[%emt 0:00:07]} d5 {[%emt 0:00:03]} 4. e5 {[%emt 0:00:02]} Nfd7 {[%emt 0:00:08]} 5. f4 {[%emt 0:00:02]} Nb6 {[%emt 0:00:08]} 6. Nf3 {[%emt 0:00:10]} Nc6 {[%emt 0:00:02]} 7. c3 {[%emt 0:00:02]} Bg4 {[%emt 0:00:27]} 8. O-O {[%emt 0:00:11]} e6 {[%emt 0:00:01]} 9. d4 {[%emt 0:01:07]} Rc8 {[%emt 0:01:09]} 10. Be3 {[%emt 0:00:29]} Bxf3 {[%emt 0:00:02]} 11. Bxf3 {[%emt 0:00:11]} cxd4 {[%emt 0:00:02]} 12. cxd4 {[%emt 0:00:51]} Nc4 {[%emt 0:00:01]} 13. Bf2 {[%emt 0:04:07]} Nxb2 {[%emt 0:00:37]} 14. Qb3 {[%emt 0:00:13]} Qb6 {[%emt 0:00:42]} 15. Qxb6 {[%emt 0:00:15]} axb6 {[%emt 0:00:01]} 16. Nc3 {[%emt 0:00:29]} Bb4 {[%emt 0:00:21]} 17. Nb5 {[%emt 0:00:13]} O-O {[%emt 0:00:02]} 18. g4 {[%emt 0:01:11]} Nd3 {[%emt 0:00:45]} 19. Be3 {[%emt 0:00:16]} Na5 {[%emt 0:00:03]} 20. Be2 {[%emt 0:00:18]} Nc4 {[%emt 0:00:32]} 21. Bc1 {[%emt 0:00:40]} Nxc1 {[%emt 0:01:01]} 22. Raxc1 {[%emt 0:00:02]} Bd2 {[%emt 0:00:48]} 23. Rc2 {[%emt 0:00:44]} Be3+ {[%emt 0:00:52]} 24. Kh1 {[%emt 0:00:53]} Nd2 {[%emt 0:00:00]} 25. Rfc1 {[%emt 0:00:46]} Ra8 {[%emt 0:00:00]} 26. f5 {[%emt 0:00:25]} Ne4 {[%emt 0:00:00]} 27. Rf1 {[%emt 0:00:17]} Rac8 {[%emt 0:00:28]} 28. Rb2 {[%emt 0:01:07]} Rc6 {[%emt 0:00:55]} 29. Bd3 {[%emt 0:00:04]} Nc3 {[%emt 0:00:44]} 30. fxe6 {[%emt 0:01:01]} Nxb5 {[%emt 0:01:06]} 31. exf7+ {[%emt 0:00:22]} Rxf7 {[%emt 0:00:10]} 32. Rxf7 {[%emt 0:00:12]} Kxf7 {[%emt 0:00:02]} 33. Rxb5 {[%emt 0:00:01]} Bxd4 {[%emt 0:00:46]} 34. Rxd5 {[%emt 0:00:05]} Bb2 {[%emt 0:01:06]} 35. Bxh7 {[%emt 0:00:34]} Ke6 {[%emt 0:00:19]} 36. Bg8+ {[%emt 0:00:01]} Ke7 {[%emt 0:00:05]} 37. e6 {[%emt 0:00:01]} Rd6 {[%emt 0:00:07]} 38. Rf5 {[%emt 0:00:10]} Rd8 {[%emt 0:00:26]} 39. Rf7+ {[%emt 0:00:02]} Kxe6 {[%emt 0:00:13]} 40. Rf2+ {[%emt 0:00:18]} Rxg8 {[%emt 0:00:26]} 41. Rxb2 {[%emt 0:00:01]} Kd6 {[%emt 0:00:56]} 42. Rxb6+ {[%emt 0:00:07]} Kc7 {[%emt 0:00:02]} 43. Rg6 {[%emt 0:00:01]} b5 {[%emt 0:00:20]} 44. h4 {[%emt 0:00:18]} b4 {[%emt 0:00:35]} 45. h5 {[%emt 0:00:04]} Ra8 {[%emt 0:00:02]} 46. Rxg7+ {[%emt 0:00:01]} Kd6 {[%emt 0:00:02]} 47. h6 {[%emt 0:00:06]} Ra3 {[%emt 0:00:25]} 48. g5 {[%emt 0:00:15]} Ke6 {[%emt 0:00:09]} 0-1

[Event "Wuerttemberg Rapid Teams 2024"]
[Site "B?blingen, Germany"]
[Date "2024.04.13"]
[Round "9.16"]
[White "Deubel, Silas"]
[Black "Schaffert, Walter"]
[Result "1-0"]
[ECO "A04"]
[WhiteElo "1851"]
[BlackElo "2033"]
[Annotator "NA RC"]
[PlyCount "61"]
[EventDate "2024.04.13"]
[EventType "team-tourn"]
[SourceTitle "playchess.com"]
[Source "ChessBase"]
[SourceQuality "1"]
[TimeControl "900+5"]

1. Nf3 {[%emt 0:00:03]} c5 {[%emt 0:00:00]} 2. e3 {[%emt 0:00:08]} g6 {[%emt 0:00:05]} 3. h4 {[%emt 0:00:16]} Nf6 {[%emt 0:00:23]} 4. d4 {[%emt 0:00:13]} cxd4 {[%emt 0:00:15]} 5. exd4 {[%emt 0:00:03]} d5 {[%emt 0:00:13]} 6. Ne5 {[%emt 0:00:18]} Nc6 {[%emt 0:01:13]} 7. Bb5 {[%emt 0:00:02]} Qb6 {[%emt 0:00:50]} 8. Bxc6+ {[%emt 0:00:11]} bxc6 {[%emt 0:00:02]} 9. h5 {[%emt 0:00:01]} Nxh5 {[%emt 0:00:57]} 10. Rxh5 {[%emt 0:01:25]} gxh5 {[%emt 0:00:03]} 11. Qxh5 {[%emt 0:00:04]} Be6 {[%emt 0:00:32]} 12. c3 {[%emt 0:00:56]} Bg7 {[%emt 0:00:57]} 13. Nd3 {[%emt 0:00:17]} O-O-O {[%emt 0:01:56]} 14. Nd2 {[%emt 0:00:31]} Kb8 {[%emt 0:00:40]} 15. Nb3 {[%emt 0:00:07]} f6 {[%emt 0:00:18]} 16. Nbc5 {[%emt 0:00:10]} Bc8 {[%emt 0:00:12]} 17. a4 {[%emt 0:00:19]} e5 {[%emt 0:00:20]} 18. Ra3 {[%emt 0:00:33]} Ka8 {[%emt 0:00:19]} 19. Qf7 {[%emt 0:00:47]} Bf8 {[%emt 0:01:23]} 20. Rb3 {[%emt 0:00:24]} Bxc5 {[%emt 0:01:59]} 21. Rxb6 {[%emt 0:00:04]} Bxb6 {[%emt 0:00:02]} 22. Qxf6 {[%emt 0:00:17]} exd4 {[%emt 0:00:12]} 23. Qxc6+ {[%emt 0:00:05]} Bb7 {[%emt 0:00:01]} 24. Qb5 {[%emt 0:00:58]} Rhe8+ {[%emt 0:00:27]} 25. Kf1 {[%emt 0:00:08]} dxc3 {[%emt 0:00:05]} 26. bxc3 {[%emt 0:00:20]} d4 {[%emt 0:00:28]} 27. a5 {[%emt 0:00:08]} Bc7 {[%emt 0:00:14]} 28. a6 {[%emt 0:00:11]} Be4 {[%emt 0:00:10]} 29. Nc5 {[%emt 0:00:54]} Rb8 {[%emt 0:00:37]} 30. Qa4 {[%emt 0:00:05]} Rb1 {[%emt 0:00:31]} 31. Qxe8+ {[%emt 0:00:03]} 1-0